Workbook

Sheet introduction
B2: For correct functioning of this sheet, support of Visual Basic for Applications is required.
B3: So please confirm 'enable macros' when a safety warning pops up.
B4: For more details on the application of 'B-compass rat', please refer to the manual:
B7: B-compass rat, version 1.0 (September 2022):
B8: This file represents a tool for calculation of rat biomagnification factors (BMFs). For the calculation, two BMF
B9: model variants are implemented:
B10: - a simple one-compartment model
B11: - and a more complex steady state multi-compartment model.
B12: Both models calculate the BMF from uptake and elimination rate constants. The uptake rate constant k1 reflects
B13: the uptake of the chemical via diet, the elimination is a combination of elimination via ventilation, fecal
B14: egestion and biotransformation.
B15: For the calculation, information on the chemical's partition properties are required. The partition properties of
B16: a chemical are estimated from KOW- and KOA-correlations.
B19: For the user, the following three sheets are most essential:
B20: - compound input data sheet (partition information & in vitro biotranformation data need to be entered)
B21: - organism input data sheet (bodyweight of modeled rat needs to be entered)
B22: - BMF sheet (presents results of the calculations & supporting graphs)
B24: All background calculations (i.e. how the required rate constants are calculated from the given input data)
B25: are shown in the additional sheets so that interested users can understand the calculation methods. These
B26: sheets require no modification by the user.
B27: Finally there is a reference and a glossary sheet summarizing the used variable names.
B31: Note: Users may modify this sheet according to their needs. We thus recommend that new users do not accept this file
B32: from third parties, but always download it as an original copy from www.ufz.de/b-compass-rat.
B33: Feel free to share any problems, suggestions, wishes or success with us!

Sheet compound input data
B1: INPUT PARAMETERS
B3: compound-specific input cells that need to be entered by the user are marked with orange colour
B5: compound name | D5: b(a)p
B6: chemical concentration in food Cfood [gchemical/gfood] | D6: 0.1 | E6: assumed value
B8: 1) log KOW and log KOA of the chemical
B10: log KOW [LH2O/Loctanol] | C10: log KOA [Lair/Loctanol]
B12: 8 | C12: 10
B15: 2) Information from in vitro biotransformation assay
B17: Select the type of in vitro information (S9, cell or microsome assay) you want to use and insert the required input data. In case biotrans-
B18: formation data is not available for all tissues, select 'N/A' for the cases where information is missing.
B38: a) hepatic biotransformation | F38: b) lung biotransformation | I38: c) GIT biotransformation | L38: d) kidney biotransformation
B40: Please tick as appropriate: | F40: Please tick as appropriate: | I40: Please tick as appropriate: | L40: Please tick as appropriate:
B47: - liver S9-Assay | F47: - lung S9-Assay | I47: - GIT S9-Assay | L47: - kidney S9-Assay
B48: kassay [1/h] | C48: =0.022*60 -> 1.32 | F48: kassay [1/h] | G48: 5 | I48: kassay [1/h] | J48: 1 | L48: kassay [1/h] | M48: 1
B49: CS9 in assay [mgS9/mLassay] | C49: 1.2 | F49: CS9 in assay [mgS9/mLassay] | G49: 1 | I49: CS9 in assay [mgS9/mLassay] | J49: 1 | L49: CS9 in assay [mgS9/mLassay] | M49: 1
B50: Vassay [mLassay] | C50: 1 | F50: Vassay [mLassay] | G50: 1 | I50: Vassay [mLassay] | J50: 1 | L50: Vassay [mLassay] | M50: 1
B52: - hepatocyte assay | F52: - cell assay | I52: - cell assay | L52: - cell assay
B53: kassay [1/h] | C53: 50 | F53: kassay [1/h] | G53: 0.1 | I53: kassay [1/h] | J53: 0.1 | L53: kassay [1/h] | M53: 0.1
B54: Cviable cells in assay [* 106 cells/mLassay] | C54: 2 | F54: Cviable cells in assay [* 106 cells/mLassay] | G54: 2 | I54: Cviable cells in assay [* 106 cells/mLassay] | J54: 2 | L54: Cviable cells in assay [* 106 cells/mLassay] | M54: 2
B55: viability | C55: 0.85 | F55: viability | G55: 0.85 | I55: viability | J55: 0.85 | L55: viability | M55: 0.85
B56: Vassay [mLassay] | C56: 1 | F56: Vassay [mLassay] | G56: 1 | I56: Vassay [mLassay] | J56: 1 | L56: Vassay [mLassay] | M56: 1
B58: - microsome assay | F58: - microsome assay | I58: - microsome assay | L58: - microsome assay
B59: kassay [1/h] | C59: =0.022*60 -> 1.32 | F59: kassay [1/h] | G59: 5 | I59: kassay [1/h] | J59: =0.022*60 -> 1.32 | L59: kassay [1/h] | M59: =0.022*60 -> 1.32
B60: Cmicrosomes in assay [mgmic/mLassay] | C60: 1.2 | F60: Cmicrosomes in assay [mgmic/mLassay] | G60: 2 | I60: Cmicrosomes in assay [mgmic/mLassay] | J60: 1.2 | L60: Cmicrosomes in assay [mgmic/mLassay] | M60: 1.2
B61: Vassay [mLassay] | C61: 1 | F61: Vassay [mLassay] | G61: 1 | I61: Vassay [mLassay] | J61: 1 | L61: Vassay [mLassay] | M61: 1
B65: CALCULATED PARAMETERS - no changes by the user required
B67: Water contents in assay
B68: a) hepatic assay | F68: a) lung assay | I68: a) intestinal assay | L68: a) renal assay
B69: S9 volume present in assay VS9 [mL] | C69: =(C50*(CliverSnine/1000))/'organism input data'!D109 -> 0.0009268070575 | D69: = (Vassay * CS9/1000) / ρS9 | F69: S9 volume present in assay VS9 [mL] | G69: =(G50*(G49/1000))/'organism input data'!D109 -> 0.0007723392146 | I69: S9 volume present in assay VS9 [mL] | J69: =(J50*(J49/1000))/'organism input data'!D109 -> 0.0007723392146 | L69: S9 volume present in assay VS9 [mL] | M69: =(M50*(M49/1000))/'organism input data'!D109 -> 0.0007723392146
B70: S9-assay water content wassay | C70: =(C50-C69)/C50 -> 0.9990731929 | D70: = (Vassay - VS9)) / Vassay | F70: S9-assay water content wassay | G70: =(G50-G69)/G50 -> 0.9992276608 | I70: S9-assay water content wassay | J70: =(J50-J69)/J50 -> 0.9992276608 | L70: S9-assay water content wassay | M70: =(M50-M69)/M50 -> 0.9992276608
B71: total hepatocyte volume present in assay Vhep [mLhep] | C71: =(Chep*10^6*C56)/C55*1/6*PI()*dhep^3 -> 0.01403321718 | D71: = (Cviable cells * 106 * Vhepassay)/viability * Vsinglecell | F71: total cell volume present in assay Vlungcells [mLcells] | G71: =('compound input data'!G54*10^6*'compound input data'!G56)/'compound input data'!G55*(1/6*PI()*'organism input data'!D89^3) -> 0.5197487846 | I71: total cell volume present in assay Vgutcells [mLcells] | J71: =('compound input data'!J54*10^6*'compound input data'!J56)/'compound input data'!J55*(1/6*PI()*'organism input data'!D91^3) -> 0.03326392221 | L71: total cell volume present in assay Vkidneycells [mLcells] | M71: =('compound input data'!M54*10^6*'compound input data'!M56)/'compound input data'!M55*(1/6*PI()*'organism input data'!D94^3) -> 0.03326392221
B72: hep-assay water content wassay | C72: =(C56-Vhep)/C56 -> 0.9859667828 | D72: = (Vassay - Vhep ) / Vassay | F72: lung-assay water content wassay | G72: =('compound input data'!G56-G71)/'compound input data'!G56 -> 0.4802512154 | I72: gut assay water content wassay | J72: =('compound input data'!J56-J71)/'compound input data'!J56 -> 0.9667360778 | L72: kidney assay water content wassay | M72: =('compound input data'!M56-M71)/'compound input data'!M56 -> 0.9667360778
B73: microsome volume present in assay Vmic [mL] | C73: =C61*C60/1000 -> 0.0012 | F73: microsome volume present in assay Vmic [mL] | G73: =G61*G60/1000 -> 0.002 | I73: microsome volume present in assay Vmic [mL] | J73: =J61*J60/1000 -> 0.0012 | L73: microsome volume present in assay Vmic [mL] | M73: =M61*M60/1000 -> 0.0012
B74: microsome assay water content wassay | C74: =(C61-C73)/C61 -> 0.9988 | F74: microsome assay water content wassay | G74: =(G61-G73)/G61 -> 0.998 | I74: microsome assay water content wassay | J74: =(J61-J73)/J61 -> 0.9988 | L74: microsome assay water content wassay | M74: =(M61-M73)/M61 -> 0.9988
B77: Partition information
B79: Korganism/W [LH2O/LOrg] | C79: =lipidorganism*10^logKow+'organism input data'!C32*0.05*10^logKow+worganism -> 8355000.698 | D79: = proteinorganism * 0.05 * KOW+ lipidorganism * KOW + worganism
B80: Kblood/W [LH2O/Lblood] | C80: =('organism input data'!C28+'organism input data'!D28)*0.05*10^logKow+'organism input data'!E28*10^logKow+'organism input data'!F28*(0.3*10^logKow+0.7)+wblood -> 2840000.825 | D80: = proteinblood * 0.05 * KOW + n.lipidblood * KOW + ph.lipidblood * (0.3 * KOW + 0.7) + wblood from Lee et al. 2017
B81: Khep/W [LH2O/Lhep] | C81: ='organism input data'!C36*0.05*10^logKow+'organism input data'!D36*10^logKow+'organism input data'!E36*(0.3*10^logKow+0.7)+whep -> 3543500.726 | D81: = proteinhep * 0.05 * KOW + n.lipidhep * KOW + ph.liphep* (0.3 * KOW + 0.7) + whep from Lee et al. 2017
B82: Klungcell/W [LH2O/Llungcell] | C82: ='organism input data'!C40*Kpw+'organism input data'!D40*10^logKow++'organism input data'!E40*(0.3*10^logKow+0.7)+wlung -> 3480500.8 | D82: = proteinlung * 0.05 * KOW + n.lipidlung * KOW + ph.liplung* (0.3 * KOW + 0.7) + wlung
B83: Kgutcell/W [LH2O/Lgutcell] | C83: ='organism input data'!C44*Kpw+'organism input data'!D44*10^logKow+'organism input data'!E4*(0.3*10^logKow+0.7)+wgut -> 3960000.749 | D83: = proteingut * 0.05 * KOW + n.lipidgut * KOW + ph.lipgut* (0.3 * KOW + 0.7) + wgut
B84: Kkidneycell/W [LH2O/Lkidneycell] | C84: ='organism input data'!C48*Kpw+'organism input data'!D48*10^logKow+'organism input data'!E48*(0.3*10^logKow+0.7)+wkidney -> 3023500.791 | D84: = proteinkidney * 0.05 * KOW + n.lipidkidney * KOW + ph.lipkidney* (0.3 * KOW + 0.7) + wkidney
B85: Krestbody/W [LH2O/Lrestbody] | C85: =(Vhepliver/mbody*Khepw+Vgut/mbody*Kgutcellw+Vlung/mbody*Klungcellw+Vkidney/mbody*Kkidneycellw-Korganismw)/(-(mbody-Vhepliver-Vgut-Vlung-Vkidney)/mbody) -> 8530460.513 | D85: = (Vliver/Vbody * Khep/W + Vgut/Vbody * Kgutcell/W + Vlung/Vbody * Klungcell/W + Vkidney/mbody*Kkidneycellw - Korganism/W) / (-Vrestbody/Vbody))
B86: Kprotein/w [Lw/Lprotein] | C86: =0.05*10^logKow -> 5000000 | D86: = 0.05 * 10logKow
B87: Kwater/air [Lair/LH2O] | C87: =1/(10^logKow)*10^logKoa -> 100 | D87: = KOA / KOW
B88: Korganism/air [Lair/Lorg] | C88: =Korganismw*C87 -> 835500069.8 | D88: = Korganism/water * Kwater/air
B89: Kfood/water [LH2O/Lfood] | C89: ='organism input data'!D60*10^logKow+'organism input data'!C60*0.05*10^logKow+('organism input data'!E60*0.7*10^logKow+'organism input data'!E60*0.3*1)+(1-'organism input data'!D60-'organism input data'!C60-'organism input data'!E60) -> 15900000.67 | D89: = n.lipidfood * KOW + proteinfood * 0.05 * KOW + n.lipidkidney * KOW + ph.lipkidney* (0.3 * KOW + 0.7) + wkidney
B90: Kfood/air [Lair/Lfood] | C90: =C89*Kwaterair -> 1590000067 | D90: = Kfood/water * Kwater/air
B91: fu,blood | C91: =wblood/Kbloodw -> 2.852111847e-07 | D91: = wblood / Kblood/H2O
B92: fu,liverS9-assay | C92: =wliverS9assay/((C69*'organism input data'!B52)/C50*0.05*10^logKow+(C69*'organism input data'!C52)/C50*10^logKow+wliverS9assay) -> 3.593997772e-05 | D92: = wliverS9assay / ( proteinliverS9assay * 0.05 * KOW + lipidliverS9assay * KOW + wliverS9assay ) from Lee et al. 2017
B93: fu,hep-assay | C93: =whepassay/((C71*'organism input data'!C36)/Vhepassay*0.05*10^logKow+(C71*'organism input data'!D36)/Vhepassay*10^logKow+(C71*'organism input data'!E36)/Vhepassay*(0.3*10^logKow+0.7)+whepassay) -> 1.982731866e-05 | D93: = whepassay / ( proteinhepassay * 0.05 * KOW + lipidhepassay * KOW + whepassay ) from Lee et al. 2017
B94: fu,liver mic-assay | C94: =wlivermicassay/((C73*'organism input data'!B56)/C61*Kpw+(C73*'organism input data'!C56)/C61*10^logKow+wlivermicassay) -> 2.775049115e-05 | D94: = wmicassay / ( proteinmicassay * 0.05 * KOW + lipidmicassay * KOW + wmicassay )
B95: fu,lungS9-assay | C95: =wlungS9assay/((G69*'organism input data'!B52)/G50*0.05*10^logKow+(G69*'organism input data'!C52)/G50*10^logKow+wlungS9assay) -> 4.3134331e-05 | D95: = wlungS9assay / ( proteinlungS9assay * 0.05 * KOW + lipidlungS9assay * KOW + wlungS9assay ) from Lee et al. 2017
B96: fu,lungcell-assay | C96: =wlungcellassay/((G71*'organism input data'!C36)/G56*0.05*10^logKow+(G71*'organism input data'!D36)/G56*10^logKow+(G71*'organism input data'!E36)/G56*(0.3*10^logKow+0.7)+wlungcellassay) -> 2.607608795e-07 | D96: = wlungcellassay / ( proteinlungcellassay * 0.05 * KOW + lipidlungcellassay * KOW + wlungcellassay ) from Lee et al. 2017
B97: fu,lung mic-assay | C97: =wlungmicassay/((G73*'organism input data'!B56)/G61*Kpw+(G73*'organism input data'!C56)/G61*10^logKow+wlungmicassay) -> 1.663714335e-05 | D97: = wmicassay / ( proteinmicassay * 0.05 * KOW + lipidmicassay * KOW + wmicassay )
B98: fu,gutS9-assay | C98: =wgutS9assay/((J69*'organism input data'!B52)/J50*0.05*10^logKow+(J69*'organism input data'!C52)/J50*10^logKow+wgutS9assay) -> 4.3134331e-05 | D98: = wgutS9assay / ( proteingutS9assay * 0.05 * KOW + lipidgutS9assay * KOW + wgutS9assay ) from Lee et al. 2017
B99: fu,gutcell-assay | C99: =wgutcellassay/((J71*'organism input data'!C36)/J56*0.05*10^logKow+(J71*'organism input data'!D36)/J56*10^logKow+(J71*'organism input data'!E36)/J56*(0.3*10^logKow+0.7)+wgutcellassay) -> 8.201597807e-06 | D99: = wgutcellassay / ( proteingutcellassay * 0.05 * KOW + lipidgutcellassay * KOW + wgutcellassay ) from Lee et al. 2017
B100: fu,gut mic-assay | C100: =wgutmicassay/((J73*'organism input data'!B56)/J61*Kpw+(J73*'organism input data'!C56)/J61*10^logKow+wgutmicassay) -> 2.775049115e-05 | D100: = wmicassay / ( proteinmicassay * 0.05 * KOW + lipidmicassay * KOW + wmicassay )
B101: fu,kidneyS9-assay | C101: =wkidneyS9assay/((M69*'organism input data'!B52)/M50*0.05*10^logKow+(M69*'organism input data'!C52)/M50*10^logKow+wkidneyS9assay) -> 4.3134331e-05 | D101: = wkidneyS9assay / ( proteinkidneyS9assay * 0.05 * KOW + lipidkidneyS9assay * KOW + wkidneyS9assay )
B102: fu,kidneycell-assay | C102: =wkidneycellassay/((M71*'organism input data'!C36)/M56*0.05*10^logKow+(M71*'organism input data'!D36)/M56*10^logKow+(M71*'organism input data'!E36)/M56*(0.3*10^logKow+0.7)+wkidneycellassay) -> 8.201597807e-06 | D102: = wgutcellassay / ( proteinkidneycellassay * 0.05 * KOW + lipidkidneycellassay * KOW + wkidneycellassay )
B103: fu,kidney mic-assay | C103: =wkidneymicassay/((M73*'organism input data'!B56)/M61*Kpw+(M73*'organism input data'!C56)/M61*10^logKow+wkidneymicassay) -> 2.775049115e-05 | D103: = wmicassay / ( proteinmicassay * 0.05 * KOW + lipidmicassay * KOW + wmicassay )

Sheet organism input data
B1: INPUT PARAMETERS
B3: organism-specific input cells that need to be entered by the user are marked with blue colour
B5: bodyweight mbody [grat] | C5: 200
B9: Additionally, physiological information is required. Typical default values for all required parameters are provided (see below)
B10: so that no further information needs to be entered by the user. If desired, however, the user can of course modify the
B11: parameter values.
B13: For the one-compartment model, only information on the composition (lipid, protein and water contents) and scaling factors
B14: (e.g. S9 content of the liver) are needed.
B15: The multi-compartment model additionally requires information on blood flow rates (cardiac output, organ flow rates) and
B16: organ volumes.
B20: Below is a list of the used default values for the required physiological parameters (for rat) and their corresponding
B21: references.
B23: Required Physiological Parameters
B25: 1) Compositions
B26: composition blood (volume fractions, values between 0 - 1!) - from Endo et al. 2013
B27: water wblood | C27: albumin | D27: non-albumin protein | E27: storage lipid | F27: membrane lipid
B28: 0.81 | C28: 0.016 | D28: 0.16 | E28: 0.013 | F28: 0.022
B30: composition organism (volume fractions, values between 0 - 1!) - lipid calculated from bodyweight (Brown et al. 1997), protein from Lee et al. 2017
B31: water worganism | C31: protein | D31: total lipid
B32: =1-C32-D32 -> 0.69795 | C32: 0.23 | D32: =(0.035*mbody+0.205)/100 -> 0.07205
B34: composition hepatocyte (volume fractions, values between 0 - 1!) - from Lee et al. 2017
B35: water whep | C35: protein | D35: storage lipid | E35: membrane lipid
B36: 0.705 | C36: =1-whep-D36-E36 -> 0.2509 | D36: 0.0138 | E36: 0.0303
B38: composition lung cells (volume fractions, values between 0 - 1!) - from Lee et al. 2017
B39: water wlung | C39: protein | D39: storage lipid | E39: membrane lipid
B40: 0.79 | C40: =1-wlung-D40-E40 -> 0.1741 | D40: 0.0219 | E40: 0.014
B42: composition intestinal cells (volume fractions, values between 0 - 1!) - from Lee et al. 2017
B43: water wgut | C43: protein | D43: storage lipid | E43: membrane lipid
B44: 0.749 | C44: =1-wgut-D44-E44 -> 0.208 | D44: 0.0292 | E44: 0.0138
B46: composition kidney cells (volume fractions, values between 0 - 1!) - from Lee et al. 2017
B47: water wkidney | C47: protein | D47: storage lipid | E47: membrane lipid
B48: 0.771 | C48: =1-wkidney-D48-E48 -> 0.1883 | D48: 0.0123 | E48: 0.0284
B50: composition S9 fraction (volume fractions, values between 0 - 1!) - value for trout S9 used
B51: protein | C51: lipid
B52: =(2/1.4)/(2/1.4+0.51/1) -> 0.7369196758 | C52: =(0.51/1)/(2/1.4+0.51/1) -> 0.2630803242
B54: composition microsomes (volume fractions, values between 0 - 1!) - value for trout S9 used
B55: protein | C55: lipid
B56: =(2/1.4)/(2/1.4+0.51/1) -> 0.7369196758 | C56: =(0.51/1)/(2/1.4+0.51/1) -> 0.2630803242
B58: composition rat food (volume fractions, values between 0 - 1!) - from Vento et al. 2008
B59: water wfood | C59: protein | D59: storage lipid | E59: membrane lipid
B60: =1-C60-D60 -> 0.67 | C60: 0.18 | D60: 0.15 | E60: 0
B61: Note: typical ratons for laboratory rats often contain up to 0.15 lipid (Canadian Council on Animal Care), the minimum lipid content for laboratory rat food is 0.05 acc. to Keenan et al. 2000
B63: 2) Scaling factors
B64: liver microsomal protein content Lmic [mg/gliver] | D64: 35 | E64: from Punt et al. 2008
B65: liver S9 protein content LS9 [mg/gliver] | D65: 143 | E65: from Punt et al. 2008
B66: liver hepatocyte content LHEP [106 cells/gliver] | D66: 117 | E66: from Sohlenius-Sternbeck 2006
B67: fractional liver weight LFBW [gliver/grat] | D67: 0.0366 | E67: from Brown et al .1997
B69: lung microsomal protein content Lungmic [mg/glung] | D69: 20 | E69: from Punt et al. 2008
B70: lung S9 content LungS9 [mg/glung] | D70: 75.8 | E70: from Behera et al. 2008 (organ protein content)
B71: alveolar cell content Lungcells [106 cells/glung] | D71: =79/(325*D72) -> 48.61538462 | E71: from Crapo et al. 1996 (alveolar type I cells)
B72: fractional lung weight LungFBW [glung/grat] | D72: 0.005 | E72: from Brown et al .1997
B74: gut microsomal protein content Gutmic [mg/ggut] | D74: =(15.1+25.9)/2 -> 20.5 | E74: from Hatley et al. 2017
B75: S9 content in gut, GutS9 [mg/gGIT] | D75: 37.1 | E75: from Behera et al. 2008 (organ protein content)
B76: cell content in gut, Gutcells [106 cells/gGIT] | D76: 40 | E76: from Koster et al. 1983
B77: fractional intestine weight GutFBW [ggut/grat] | D77: =0.0046+0.014+0.0084 -> 0.027 | E77: from Brown et al .1997
B79: kidney microsomal protein content Kmic [mg/gkidney] | D79: 7 | E79: from Punt et al. 2008
B80: S9 content in kidney, KS9 [mg/gkidney] | D80: 112.8 | E80: from Behera et al. 2008 (organ protein content)
B81: cell content in kidney, Kcells [106 cells/gkidney] | D81: =31764*674*2/(215*D82)/10^6 -> 27.28121822 | E81: from Bertram et al. 1992 (calculated from glomeruli number and multiplied by 2)
B82: fractional kidney weight KFBW [gkidney/grat] | D82: 0.0073 | E82: from Brown et al .1997
B84: 3) Blood flow and volume information
B85: total liver blood flow as fraction of cardiac output QHFRAC [unitless] | D85: =D86+D92 -> 0.174 | E85: = QHFRAC,arterial + QGFRAC
B86: arterial liver blood flow as fraction of cardiac output QHFRAC,arterial [unitless] | D86: =0.021 -> 0.021 | E86: from Brown et al .1997
B87: hepatocyte diameter dhep [cm] | D87: =22.5/10000 -> 0.00225 | E87: from Klinger et al. 1988
B89: lung cell diameter dlung [cm] | D89: =75/10000 -> 0.0075 | E89: from Gonzalez et al. 2009
B91: gut cell diameter dgut [cm] | D91: 0.003 | E91: assumed
B92: intestinal blood flow as fraction of cardiac output QGFRAC [unitless] | D92: =0.153 -> 0.153 | E92: from Brown et al .1997
B94: kidney cell diameter dkidney [cm] | D94: 0.003 | E94: assumed
B95: kidney blood flow as fraction of cardiac output QKFRAC [unitless] | D95: 0.141 | E95: from Brown et al .1997
B97: 4) Uptake and excretion
B98: feeding rate kfeed [kgfood/kgrat/d] | D98: =0.0276/0.364 -> 0.07582417582 | E98: from Lee et al. 2017 (assuming food density of 1 kg/L)
B99: uptake efficiency for chemical [unitless] | D99: 1 | E99: assumed
B100: assimilation efficiency for lipid | D100: 0.97 | E100: from Lee et al. 2017
B101: assimilation efficiency for protein | D101: 0.96 | E101: from Lee et al. 2017
B102: assimilation efficiency for water | D102: 0.85 | E102: from Lee et al. 2017
B103: urination rate [L/d/kgrat] | D103: =0.0064*(mbody)^0.82/1000*24/(mbody/1000) -> 0.05918420476 | E103: = (0.0064* mbody0.82) /1000 * 24 / (mbody/1000) from Roth et al. 1993 eq. (4)
B104: alveolar ventilation rate kalveolar [L/kgrat/d] | D104: =0.117*60*24/0.25 -> 673.92 | E104: = 0.117 L/min * 60 min/h * 24 h/d / 0.25 kgrat from Arms 1988 table 4-14
B107: Calculated Physiological Parameters - no changes by the user required
B109: S9 density ρS9 [g/mL] | D109: =(2.51/(2/1.4+0.51/1)) -> 1.29476787
B111: liver weight mliver [gliver] | D111: =D67*mbody -> 7.32 | E111: = LFBW * mbody
B112: lung weight mlung [glung] | D112: =D72*mbody -> 1 | E112: = lungFBW * mbody
B113: intestine weight mgut [ggut] | D113: =0.0124*mbody -> 2.48 | E113: = GutFBW * mbody
B114: kidney weight mkidney [gkidney] | D114: =D82*mbody -> 1.46 | E114: = KFBW * mbody
B115: volume rest of body Vrestbody [mL] | D115: =mbody-Vgut-Vlung-Vhepliver-Vkidney -> 192.9051153
B117: hepatocyte volume in the liver Vhepliver [mL] | D117: =Lhep * 10^6 * mliver * 1/6 * PI() *dhep^3 -> 5.107908623 | E117: = Lhep * 10^6 * mliver * Vsinglecell (Vsinglecell = 1/6 * π * dhep3 because spherical shape assumed)
B118: lung cell volume Vlung [mL] | D118: =Acells* 10^6 * mlung * ((D89/2)^2*PI()*0.1/10000) -> 0.02147761901 | E118: = Acells * 10^6 * mlung * Vsinglecell (Vsinglecell = dlung/22 * π * 0.1/10000 because flat cylinder shape assumed from Yang et al. 2016)
B119: gut cell volume Vgut [mL] | D119: =gutcells * 10^6 * mgut * 1/6 * PI() *D91^3 -> 1.402406961 | E119: = Gutcells * 10^6 * mgut * Vsinglecell (Vsinglecell = 1/6 * π * dgut3 because spherical shape assumed)
B120: kidney cell volume Vkidney [mL] | D120: =Kcells * 10^6 * mkidney * 1/6 * PI() *D94^3 -> 0.5630915391 | E120: = Kcells * 10^6 * mkidney * Vsinglecell (Vsinglecell = 1/6 * π * dgut3 because spherical shape assumed)
B122: cardiac output QC [L/d/kgrat] | D122: =(0.235*(mbody/1000)^0.75)*60*24/(mbody/1000) -> 506.0260276 | E122: = (0.235 * mbody/1000)0.74) * 60 * 24 / (mbody/1000) from Brown 1997
B124: arterial liver blood flow per bodyweight Qliver,bodyweight [mL/h/grat] | D124: =D122*D86*1000/1000/24 -> 0.4427727741 | E124: = QC * QHFRAC,arterial
B125: arterial liver blood flow Qliver [mL/h] | D125: =D124*mbody -> 88.55455482 | E125: = Qliver,bodyweight / 24 * mbody
B126: lung blood flow rate per bodyweight Qlung, bodyweight [mLblood/h/grat] | D126: ='organism input data'!D122*1000/1000/24 -> 21.08441782 | E126: assumed as 100% of cardiac output
B127: lung blood flow rate Q [mLblood/h] | D127: =D126*mbody -> 4216.883563 | E127: = Qlung,bodyweight * mbody
B128: gut blood flow rate [mLblood/h/grat] Qgut, bodyweight | D128: =D122*D92*1000/1000/24 -> 3.225915926 | E128: = QC * QGFRAC
B129: gut blood flow rate Qgut [mLblood/h] | D129: =D128*mbody -> 645.1831851 | E129: = Qgut,bodyweight * mbody
B130: total liver blood flow Qliver-total [mLblood/h] | D130: =(D122*D85*1000/1000)/24*mbody -> 733.73774 | E130: = QC * QHFRAC / 24 * mbody
B131: kidney blood flow rate Qkidney [mLblood/h] | D131: =D122*D95*1000/1000/24*mbody -> 594.5805824 | E131: = QC * QKFRAC / 24 * mbody
B132: blood flow rate to rest body Qbody [mLblood/h] | D132: =('organism input data'!D122*1000/1000/24*mbody)-Qliver-Qgut-Qkidney -> 2888.565241 | E132: = QC / 24 * mbody - Qgut - Qliver - Qkidney

Sheet BMF
B2: ="Calculation of the BMF for "&'compound input data'!D5 -> Calculation of the BMF for b(a)p
B4: ="Info: You are currently using a log Kow of "&'compound input data'!B12&" and a log Koa of "&'compound input data'!C12&"." -> Info: You are currently using a log Kow of 8 and a log Koa of 10.
B6: 1) kinetic BMFs
B8: a) Classical one-compartment model (no flow limitations):
B9: kinetic BMFone-compartment [unitless] | D9: =kone/(kV+kBLIVER+kE+kBLUNG+kBGIT+kBKIDNEY+kU)*(1/Korganismair)/(1/Kfoodair) -> 0.009356156782 | E9: = k1 /(kV+kB,LIVER+kE+kB,LUNG+kB,GIT+kB,KIDNEY+kU) * Kair/organism / Kair/food
B10: freely dissolved steady-state concentration in body-water [g/mL] | D10: =(kone/(kV+kBLIVER+kE+kBLUNG+kBGIT+kBKIDNEY+kU)*Cfood)/Korganismw -> 5.884375087e-11
B12: b) Multi-compartment model:
B13: The multi-compartment model distinguishes the five compartments lung, liver, GIT, kidney and | Q13: in g/d | R13: % of uptake
B14: rest of the body. By this, the model can represent the potential first-pass effect in the GIT & liver | O14: chemical mass taken up | Q14: =kone*Cfood*mbody -> 1.516483516 | R14: =Q14/Q14 -> 1
B15: and the direct blood flow from GIT to liver. | O15: one-compartment model | T15: multi-compartment model | V15: in g/d | W15: % of uptake
B16: For every compartment, a mass balance is set up containing all uptake and elimination | O16: mass eliminated via ventilation | Q16: =kV*D46*Cfood*mbody -> 3.965598058e-07 | R16: =Q16/$Q$14 -> 2.614995821e-07 | T16: mass eliminated via ventilation | V16: =klungventilation*B28*Vlung -> 3.948438086e-07 | W16: =V16/$Q$14 -> 2.603680187e-07
B17: processes applying to the respective compartment. This linear system of equations is | O17: mass transformed in lung | Q17: =D46*kBLUNG*Cfood*mbody -> 0.01239915762 | R17: 0.008176256113 | T17: mass transformed in lung | V17: =klungbiotransf*B28*Vlung -> 0.01234550387 | W17: 0.008140875741
B18: then solved via the Gaussian elimination method. | O18: mass transformed in liver | Q18: =kBLIVER*D46*Cfood*mbody -> 1.503650277 | R18: 0.9915375013 | T18: mass transformed in liver | V18: =kliverbiotransf*C28*Vhepliver -> 1.503451769 | W18: 0.991406601
B19: The linear system of equations is written into the following 5x5-matrix: | F19: Clung | G19: Cliver | H19: CGIT | I19: Ckidney | J19: Crestbody | O19: mass transformed in GIT | Q19: =D46*kBGIT*Cfood*mbody -> 0 | R19: 0 | T19: mass transformed in kidney | V19: =D28*kGITbiotransf*Vgut -> 0 | W19: 0
E20: I | F20: =kbodyin*Vlung -> 56567.91231 | G20: 0 | H20: 0 | I20: 0 | J20: =-kbodyout*mrestbody -> -23080.19171 | K20: 0 | O20: mass transformed in kidney | Q20: =kBKIDNEY*D46*Cfood*mbody -> 0 | R20: 0 | T20: mass transformed in GIT | V20: =E28*kkidneybiotransf*Vkidney -> 0 | W20: 0
E21: II | F21: =kkidneyin*Vlung -> 11643.90604 | G21: 0 | H21: 0 | I21: =-(kkidneybiotransf+kkidneyout+kkidneyurine)*Vkidney -> -13403.87421 | J21: 0 | K21: 0 | O21: mass eliminated via feces | Q21: =kE*D46*Cfood*mbody -> 0.0004336849102 | R21: 0.0002859806292 | T21: mass eliminated via feces | V21: =kGITfeces*D28*Vgut -> 0.0006858484671 | W21: 0.0004522623949
E22: III | F22: =kliverin*Vlung -> 1734.198771 | G22: =-((kliverbiotransf+kliverout)*Vhepliver) -> -21324.91429 | H22: =kGITout*Vgut -> 11104.97231 | I22: 0 | J22: 0 | K22: 0 | O22: mass eliminated via urine | Q22: =kU*D46*Cfood*mbody -> 6.9652412e-10 | R22: 4.593021371e-10 | T22: mass eliminated via urine | V22: =kkidneyurine*E28*Vkidney -> 6.935101141e-10 | W22: 4.573146405e-10
E23: IV | F23: =kGITin*Vlung -> 12634.87676 | G23: 0 | H23: =-(kGITbiotransf+kGITfeces+kGITout)*Vgut -> -11106.83345 | I23: 0 | J23: 0 | K23: =-kone*Cfood*mbody -> -1.516483516 | T23: blood flows: | U23: lung-to-body | V23: =1-V24-V25-V26 -> 0.685
E24: V | F24: =-(klungventilation+klungbiotransf+kbodyin+kliverin+kGITin+kkidneyin)*Vlung -> -82641.43688 | G24: =kliverout*Vhepliver -> 14113.60763 | H24: 0 | I24: =kkidneyout*Vkidney -> 13403.87421 | J24: =kbodyout*mrestbody -> 23080.19171 | K24: 0 | U24: lung-to-GIT | V24: ='organism input data'!D92 -> 0.153
U25: lung-to-liver | V25: ='organism input data'!D86 -> 0.021
B26: Solution of the mass balance equations yields the following steady state-concentrations in lung, liver, GIT, kidney and rest body: | U26: lung-to-kidney | V26: ='organism input data'!D95 -> 0.141
B27: Clung [g/mL] | C27: Cliver [g/mL] | D27: CGIT [g/mL] | E27: Ckidney [g/mL] | F27: Crestbody [g/mL]
B28: =TRANSPOSE(MMULT(MINVERSE(F20:J24),K20:K24)) -> 0.0002039194847 | C28: 0.0002084853466 | D28: 0.0003685101693 | E28: 0.0001771442556 | F28: 0.0004997921887
B30: Combination of the steady state-concentrations in the four compartments yields the BMF:
B31: kinetic BMFmulti-compartment [unitless] | D31: =(B28*Vlung+D28*Vgut+C28*Vhepliver+E28*Vkidney+F28*mrestbody)/mbody /Cfood*(1/Korganismair)/(1/Kfoodair) -> 0.009334310441 | E31: =(Clung*Vlung + Cliver*Vliver + CGIT*VGIT + Ckidney*Vkidney + Crestbody*Vrestbody) / mbody / Cfood * Kair/organism / Kair/food
B37: By combining the steady state concentrations with the respective tissue-water partition coefficients, one can
B38: calculate the corresponding aqueous concentrations to see whether there is equilibrium between the tissues.
B39: C in lung-water [g/mL] | C39: C in liver-water [g/mL] | D39: C in GIT-water [g/mL] | E39: C in kidney-water [g/mL] | F39: C in restbody-water [g/mL]
B40: =B28/Klungcellw -> 5.858912164e-11 | C40: =C28/Khepw -> 5.883598246e-11 | D40: =D28/Kgutcellw -> 9.305810596e-11 | E40: =E28/Kkidneycellw -> 5.858912162e-11 | F40: =F28/Krestorganismw -> 5.858912164e-11
B43: 2) steady state-concentration ratios rat/food
B45: a) Classical one-compartment model (no flow limitations):
B46: Crat/Cfood [kgfood/kgrat] | D46: =kone/(kV+kBLIVER+kE+kBLUNG+kBGIT+kBKIDNEY+kU) -> 0.004916395795 | E46: = k1 /(kV+kB,LIVER+kE+kB,LUNG+kB,GIT+kB,KIDNEY+kU)
B47: lipid-normalised kinetic BMFone-compartment [kglipid/kglipid] | D47: =D46*'organism input data'!D60/lipidorganism -> 0.01023538334
B49: b) Multi-compartment model:
B50: Crat/Cfood [kgfood/kgrat] | D50: =(B28*Vlung+D28*Vgut+C28*Vhepliver+E28*Vkidney+F28*mrestbody)/mbody /Cfood -> 0.004904916161 | E50: =(Clung*Vlung + Cliver*Vliver + CGIT*VGIT + Ckidney*Vkidney + Crestbody*Vrestbody) / mbody / Cfood
B51: lipid-normalised kinetic BMFmulti-compartment [kglipid/kglipid] | D51: =D50*'organism input data'!D60/lipidorganism -> 0.01021148403
B54: 3) whole-body elimination constant as an alternative endpoint:
B55: whole-body elimination rate constant k2 [1/d] | D55: =kV+kBLIVER+kE+kBLUNG+kBGIT+kBKIDNEY+kU -> 15.42271594 | E55: = kV+kB,LIVER+kE+kB,LUNG+kB,GIT+kB,KIDNEY+kU

Sheet k1
B2: ="Calculation of the GIT uptake rate constant for "&'compound input data'!D5 -> Calculation of the GIT uptake rate constant for b(a)p
B4: ="Info: You are currently using a log Kow of "&'compound input data'!B12&" and a log Koa of "&'compound input data'!C12&"." -> Info: You are currently using a log Kow of 8 and a log Koa of 10.
B9: GIT uptake rate constant k1 [kg/kg/d] | E9: =kGITuptake*'organism input data'!D99 -> 0.07582417582 | G9: = kfeed * uptake efficiency
B16: Insert the k1 value you want to use for final BMF calculation here:
B19: GIT uptake rate constant k1 [kg/kg/d] | E19: =E9 -> 0.07582417582

Sheet k2 - lung
B2: ="Calculation of the ventilation elimination rate constant for "&'compound input data'!D5 -> Calculation of the ventilation elimination rate constant for b(a)p
B4: ="Info: You are currently using a log Kow of "&'compound input data'!B12&" and a log Koa of "&'compound input data'!C12&"." -> Info: You are currently using a log Kow of 8 and a log Koa of 10.
B6: whole-body ventilation elimination rate constant kV [1/d] | E6: =(kalveolar)/(Korganismw*Kwaterair*mbody/1000) -> 4.033033774e-06 | F6: = kventilation / (Korganism/W * Kw/air) Lee 2012 eq. S5
B9: The above calculated ventilation rate constant kV refers to whole-body concentration and is used in the
B10: one-compartment model.
B11: For the multi-compartment model (that represents the lung as an extra compartment), this kV cannot be
B12: used. Instead, a ventilation rate constant that refers to chemical concentration in the lung (and not to
B13: whole-body concentration) is required.
B14: This required ventilation rate constant klung,ventilation is calcuated from the above kV via adjusting the
B15: normalization as follows:
B16: "lung-based" ventilation rate constant klung,ventilation [1/d] | E16: =kV*Korganismw/Klungcellw*mbody/Vlung -> 0.09015306019 | F16: = kV * Korganism/w / Klungcells/w * Vorganism / Vlungs

Sheet k2 - hepatic biotransf
B2: ="Calculation of the hepatic biotransformation rate constant for "&'compound input data'!D5 -> Calculation of the hepatic biotransformation rate constant for b(a)p
B4: ="Info: You are currently using a log Kow of "&'compound input data'!B12&" and a log Koa of "&'compound input data'!C12&"." -> Info: You are currently using a log Kow of 8 and a log Koa of 10.
B6: in vitro-in vivo extrapolation of liver S9 assay data
B9: assay clearance CLin vitro [mLassay/h/mgS9] | C9: =kliverS9assay/CliverSnine -> 1.1 | D9: = kassay / CS9
B11: hepatocyte clearance CLhep [mLhep/h] | C11: =CLS9assay*1/fuliverS9assay*LSnine*mliver*wliverS9assay/Khepw -> 9.032891219 | D11: = 1/fu,liverS9assay * CLin vitro * LS9 * mliver * wassay/Khepw
B13: blood clearance w/o flow limitation CLblood w/o flowlim,liver [mLblood/h] | C13: =fublood/fuliverS9assay*CLS9assay*LSnine*mliver*wliverS9assay/wblood -> 11.27043919 | D13: = fu,blood/fu,liverS9assay * CLin vitro * LS9 * mliver* wassay/wblood
B14: blood clearance incl. flow lim. CLblood,liver [mLblood/h] | C14: =(Qlivertotal*fublood/fuliverS9assay*CLS9assay*LSnine*mliver*wliverS9assay/wblood)/(Qlivertotal+fublood/fuliverS9assay*CLS9assay*LSnine*mliver*wliverS9assay/wblood) -> 11.09994066 | D14: = (Qliver * fu,blood/fu,liverS9assay * CLin vitro * LS9 * mliver* wassay/wblood) / (Qliver + fu,blood/fu,liverS9assay * CLin vitro * LS9 * mliver* wassay/wblood)
B16: Whole-body biotransformation rate constant kB,LIVER [1/d] (w/o flow lim.) | C16: =(C13*Kbloodw/Korganismw)/mbody*24 -> 0.4597207026 | D16: = (CLblood w/o flowlim,liver * Kblood/water / Korganism/water) / Vorganism * 24
B19: in vitro-in vivo extrapolation of hepatocyte assay data
B22: assay clearance CLin vitro [mLassay/h/106hep] | C22: =khepassay/Chep -> 25 | D22: = kassay / Chep
B24: hepatocyte clearance CLhep [mLhep/h] | C24: =CLhepassay*1/fuhepassay*(Lhep*mliver)*whepassay/Khepw -> 300.4711109 | D24: = 1/fu,hep-assay * CLin vitro * Lhep * mliver * wassay/Khepw
B26: blood clearance w/o flow limitation CLblood w/o flowlim,liver [mLblood/h] | C26: =fublood/fuhepassay*CLhepassay*Lhep*mliver*whepassay/wblood -> 374.9011585 | D26: = fu,blood/fu,hep-assay * CLin vitro * LHep * mliver* wassay/wblood
B27: blood clearance incl. flow lim. CLblood,liver [mLblood/h] | C27: =(Qlivertotal*fublood/fuhepassay*CLhepassay*Lhep*mliver*whepassay/wblood)/(Qlivertotal+fublood/fuhepassay*CLhepassay*Lhep*mliver*whepassay/wblood) -> 248.1232881 | D27: = (Qliver * fu,blood/fu,hep-assay * CLin vitro * LHep * mliver* wassay/wblood) / (Qliver + fu,blood/fu,hep-assay * CLin vitro * LHep * mliver* wassay/wblood)
B29: Whole-body biotransformation rate constant kB,LIVER (w/o flow lim.) [1/d] | C29: =(C26*Kbloodw/Korganismw)/mbody*24 -> 15.29220123 | D29: = (CLblood w/o flowlim,liver * Kblood/water / Korganism/water) / Vorganism * 24
B33: in vitro-in vivo extrapolation of liver microsome assay data
B35: assay clearance CLin vitro [mLassay/h/mgmic] | C35: ='compound input data'!C59/'compound input data'!C60 -> 1.1 | D35: = kassay / Cmicrosomes
B37: hepatocyte clearance CLhep [mLhep/h] | C37: =C35*1/fulivermicassay*(Lmic*mliver)*wlivermicassay/Khepw -> 2.862510867 | D37: = 1/fu,mic-assay * CLin vitro * Lmic * mliver * wassay/Khepw
B39: blood clearance w/o flow limitation CLblood w/o flowlim,liver [mLblood/h] | C39: =fublood/fulivermicassay*CLhepassay*Lmic*mliver*wlivermicassay/wblood -> 81.17242629 | D39: = fu,blood/fu,mic-assay * CLin vitro * Lmic * mliver* wassay/wblood
B40: blood clearance incl. flow lim. CLblood,liver [mLblood/h] | C40: =(Qlivertotal*fublood/fulivermicassay*CLhepassay*Lmic*mliver*wlivermicassay/wblood)/(Qlivertotal+fublood/fulivermicassay*CLhepassay*Lmic*mliver*wlivermicassay/wblood) -> 73.08691814 | D40: = (Qliver * fu,blood/fu,mic-assay * CLin vitro * Lmic * mliver* wassay/wblood) / (Qliver + fu,blood/fu,mic-assay * CLin vitro * Lmic * mliver* wassay/wblood)
B42: Whole-body biotransformation rate constant kB,LIVER (w/o flow lim.) [1/d] | C42: =(C39*Kbloodw/Korganismw)/mbody*24 -> 3.311019582 | D42: = (CLblood w/o flowlim,liver * Kblood/water / Korganism/water) / Vorganism * 24
B45: The following value for kB,LIVER is used for final BMF calculation:
B47: whole-body hepatic biotransformation rate constant kB,LIVER (w/o flow lim.) [1/d] | C47: =C29 -> 15.29220123
B50: The above calculated hepatic biotransformation rate constant kB,LIVER refers to whole-body concentration and
B51: is used in the one-compartment model.
B52: For the multi-compartment model (that represents the liver as an extra compartment), this kB,LIVER cannot be
B53: used. Instead, a hepatic biotransformation rate constant that refers to chemical concentration in the liver (and
B54: not to whole-body concentration) is required.
B55: This required liver biotransformation rate constant kliver,biotransf is calcuated from the above kB,LIVER via adjusting
B56: the normalization as follows:
B57: liver biotransformation rate constant kliver,biotransf [1/d] | C57: =kBLIVER*Korganismw/Khepw*mbody/Vhepliver -> 1411.792417 | D57: = kB,LIVER * Korganismw / Khepw * Vbody / Vhepliver
B59: When the liver is considered as an extra compartment, rate constants describing transport from liver to lung
B60: and vice versa ("kliver,out" and "kliver,in") are required. When no limitations due to slow permeation kinetics are
B61: assumed, this transport should solely depend on the liver blood flow rate.
B62: The rate constants can then be calculated from liver blood flow rate as follows:
B63: liver-to-body rate constant kliver,out [1/d] | C63: =Qlivertotal*Kbloodw/Khepw*1/Vhepliver*24 -> 2763.089294 | D63: = Qlivertotal * Kbloodw/Khepw *1/Vhepliver *24
B64: body-to-liver rate constant kliver,in [1/d] | C64: =Qliver*Kbloodw/Klungcellw*1/Vlung*24 -> 80744.46106 | D64: = Qliver * Kbloodw/Klungcellsw * 1/Vlung * 24

Sheet k2 - lung biotransf
B2: ="Calculation of the lung biotransformation rate constant for "&'compound input data'!D5 -> Calculation of the lung biotransformation rate constant for b(a)p
B4: ="Info: You are currently using a log Kow of "&'compound input data'!B12&" and a log Koa of "&'compound input data'!C12&"." -> Info: You are currently using a log Kow of 8 and a log Koa of 10.
B7: in vitro - in vivo extrapolation of lung S9 assay data:
B9: assay clearance CLin vitro [mLassay/h/mgS9] | C9: ='compound input data'!G48/'compound input data'!G49 -> 5 | D9: = kassay / CS9
B11: lung cell clearance CLlung [mLlung/h] | C11: =1/fulungS9assay*C9*lungSnine*mlung*wlungS9assay/Klungcellw -> 2.522544598 | D11: = 1/fu,lungS9-assay * CLin vitro * LungS9 * mlung * wassay/Klungcell/w
B13: blood clearance w/o flow limitation CLblood w/o flowlim,lung [mLblood/h] | C13: =fublood/fulungS9assay*C9*lungSnine*mlung*wlungS9assay/wblood -> 3.091449274 | D13: = fu,blood/fu,lungS9-assay * CLin vitro * LungS9 * mlung * wassay/wblood
B14: blood clearance incl. flow lim. CLblood,lung [mLblood/h] | C14: =(QL*fublood/fulungS9assay*C9*lungSnine*mlung*wlungS9assay/wblood)/(QL+fublood/fulungS9assay*C9*lungSnine*mlung*wlungS9assay/wblood) -> 3.089184555 | D14: = (Qlung * fu,blood/fu,lungS9-assay * CLin vitro * LungS9 * mlung* wassay/wblood) / (Qlung + fu,blood/fu,lung-assay * CLin vitro * LungS9 * mlung* wassay/wblood)
B16: whole-body lung biotransformation rate constant kB,LUNG (w/o flow lim.) [1/d] | C16: =(C13*Kbloodw/Korganismw)/mbody*24 -> 0.1261000755 | D16: = (CLblood w/o flowlim,lung * Kblood/water / Korganism/water) / Vorganism * 24
B20: in vitro - in vivo extrapolation of lung cell assay data:
B22: assay clearance CLin vitro [mLassay/h/106cells] | C22: ='compound input data'!G53/'compound input data'!G54 -> 0.05 | D22: = kassay / Ccells,assay
B24: lung cell clearance CLlung [mLlung/h] | C24: =1/fulungcellassay*C22*Acells*mlung*'compound input data'!G72/Klungcellw -> 1.286257819 | D24: = 1/fu,lungcell-assay * CLin vitro * Lungcells * mlung * wassay/Klungcell/w
B26: blood clearance w/o flow limitation CLblood w/o flowlim,lung [mLblood/h] | C26: =fublood/fulungcellassay*C22*Acells*mlung*wlungcellassay/wblood -> 1.576345094 | D26: = fu,blood/fu,lungcell-assay * CLin vitro * Lungcells * mlung * wassay/wblood
B27: blood clearance incl. flow lim. CLblood,lung [mLblood/h] | C27: =(QL*fublood/fulungcellassay*C22*Acells*mlung*wlungcellassay/wblood)/(QL+fublood/fulungcellassay*C22*Acells*mlung*wlungcellassay/wblood) -> 1.575756049 | D27: = (Qlung * fu,blood/fu,lungcell-assay * CLin vitro * Lungcells * mlung* wassay/wblood) / (Qlung + fu,blood/fu,lungcell-assay * CLin vitro * Lungcells * mlung* wassay/wblood)
B29: whole-body lung biotransformation rate constant kB,LUNG (w/o flow lim.) [1/d] | C29: =(C26*Kbloodw/Korganismw)/mbody*24 -> 0.06429904479 | D29: = (CLblood w/o flowlim,lung * Kblood/water / Korganism/water) / Vorganism * 24
B33: in vitro - in vivo extrapolation of lung microsome assay data:
B35: assay clearance CLin vitro [mLassay/h/mgmic] | C35: ='compound input data'!G59/'compound input data'!G60 -> 2.5 | D35: = kassay / Cmicrosomes
B37: lung cell clearance CLlung [mLlung/h] | C37: =1/fulungmicassay*C35*lungmic*mlung*wlungmicassay/Klungcellw -> 0.8617475337 | D37: = 1/fu,lungmic-assay * CLin vitro * Lungmic * mlung * wassay/Klungcell/w
B39: blood clearance w/o flow limitation CLblood w/o flowlim,lung [mLblood/h] | C39: =fublood/fulungmicassay*C35*lungmic*mlung*wlungmicassay/wblood -> 1.056095813 | D39: = fu,blood/fu,lungmic-assay * CLin vitro * Lungmic * mlung * wassay/wblood
B40: blood clearance incl. flow lim. CLblood,lung [mLblood/h] | C40: =(QL*fublood/fulungmicassay*C35*lungmic*mlung*wlungmicassay/wblood)/(QL+fublood/fulungmicassay*C35*lungmic*mlung*wlungmicassay/wblood) -> 1.055831386 | D40: = (Qlung * fu,blood/fu,lungmic-assay * CLin vitro * Lungmic * mlung* wassay/wblood) / (Qlung + fu,blood/fu,lungmic-assay * CLin vitro * Lungmic * mlung* wassay/wblood)
B42: whole-body lung biotransformation rate constant kB,LUNG (w/o flow lim.) [1/d] | C42: =(C39*Kbloodw/Korganismw)/mbody*24 -> 0.04307810025 | D42: = (CLblood w/o flowlim,lung * Kblood/water / Korganism/water) / Vorganism * 24
B45: The following value for kB,LUNG is used for final BMF calculation:
B47: whole-body lung biotransformation rate constant kB,LUNG (w/o flow lim.) [1/d] | C47: =C16 -> 0.1261000755
B50: The above calculated lung biotransformation rate constant kB,LUNG refers to whole-body concentration and
B51: is used in the one-compartment model.
B52: For the multi-compartment model (that represents the lung as an extra compartment), this kB,LUNG cannot be
B53: used. Instead, a lung biotransformation rate constant that refers to chemical concentration in the lung (and
B54: not to whole-body concentration) is required.
B55: This required lung biotransformation rate constant klung,biotransf is calcuated from the above kB,LUNG via adjusting
B56: the normalization as follows:
B57: lung biotransformation rate constant klung,biotransf [1/d] | C57: =kBLUNG*Korganismw/Klungcellw*mbody/Vlung -> 2818.79804 | D57: = kB,LUNG * Korganismw / Klungcellw * Vbody / Vlung
B59: When the lung is considered as an extra compartment, rate constants describing transport from lung to rest
B60: body (i.e. body without lung, liver, GIT and kidney) and vice versa are required ("kbody,in" and "kbody,out"). When no limi-
B61: tations due to slow permeation kinetics are assumed, this transport should solely depend on the blood flow rate.
B62: The rate constants can then be calculated from blood flow as follows:
B63: body-to-lung rate constant kbody,out [1/d] | C63: ='organism input data'!D132*Kbloodw/Krestorganismw*1/mrestbody*24 -> 119.6453069 | D63: = Qbody * Kblood/w / Krestorganism/w * 1/mrestbody * 24
B64: lung-to-body rate constant kbody,in [1/d] | C64: ='organism input data'!D132*Kbloodw/Klungcellw*1/Vlung*24 -> 2633807.42 | D64: = Qbody * Kblood/w / Klungcells/w * 1/Vlung * 24

Sheet k2 - GIT biotransf
B2: ="Calculation of the GIT biotransformation rate constant for "&'compound input data'!D5 -> Calculation of the GIT biotransformation rate constant for b(a)p
B4: ="Info: You are currently using a log Kow of "&'compound input data'!B12&" and a log Koa of "&'compound input data'!C12&"." -> Info: You are currently using a log Kow of 8 and a log Koa of 10.
B7: in vitro - in vivo extrapolation of gut S9 assay data:
B9: assay clearance CLin vitro [mLassay/h/mgS9] | C9: ='compound input data'!J48/'compound input data'!J49 -> 1 | D9: = kassay / CS9
B11: gut cell clearance CLgut [mLgut/h] | C11: =1/fugutS9assay*C9*gutSnine*mgut*wgutS9assay/Kgutcellw -> 0.5382347126 | D11: = 1/fu,gutS9-assay * CLin vitro * gutS9 * mgut * wassay/Kgutcell/w
B13: blood clearance w/o flow limitation CLblood w/o flowlim,GIT [mLblood/h] | C13: =fublood/fugutS9assay*C9*gutSnine*mgut*wgutS9assay/wblood -> 0.7504962133 | D13: = fu,blood/fu,gutS9-assay * CLin vitro * gutS9 * mgut * wassay/wblood
B14: blood clearance incl. flow lim. CLblood,GIT [mLblood/h] | C14: =(Qgut*fublood/fugutS9assay*C9*gutSnine*mgut*wgutS9assay/wblood)/(Qgut+fublood/fugutS9assay*C9*gutSnine*mgut*wgutS9assay/wblood) -> 0.7496242282 | D14: = (Qgut * fu,blood/fu,gutS9-assay * CLin vitro * gutS9 * mgut * wassay/wblood) / (Qgut + fu,blood/fu,gutS9-assay * CLin vitro * gutS9* mgut * wassay/wblood)
B16: Whole-body GIT biotransformation rate constant kB,GIT (w/o flow lim.) [1/d] | C16: =(C13*Kbloodw/Korganismw)/mbody*24 -> 0.03061270646 | D16: = (CLblood w/o flowlim,GIT * Kblood/water / Korganism/water) / Vorganism * 24
B20: in vitro - in vivo extrapolation of gut cell assay data:
B22: assay clearance CLin vitro [mLassay/h/106cells] | C22: ='compound input data'!J53/'compound input data'!J54 -> 0.05 | D22: = kassay / Ccells,assay
B24: gut cell clearance CLgut [mLgut/h] | C24: =1/fugutcellassay*C22*gutcells*mgut*'compound input data'!J72/Kgutcellw -> 0.1476372226 | D24: = 1/fu,gutcell-assay * CLin vitro * gutcells * mgut * wassay/Kgutcell/w
B26: blood clearance w/o flow limitation CLblood w/o flowlim,GIT [mLblood/h] | C26: =fublood/fugutcellassay*C22*gutcells*mgut*'compound input data'!J72/wblood -> 0.2058603317 | D26: = fu,blood/fu,gutcell-assay * CLin vitro * gutcells * mgut * wassay/wblood
B27: blood clearance incl. flow lim. CLblood,GIT [mLblood/h] | C27: =(Qgut*fublood/fugutcellassay*C22*gutcells*mgut*'compound input data'!J72/wblood)/(Qgut+fublood/fugutcellassay*C22*gutcells*mgut*'compound input data'!J72/wblood) -> 0.2057946683 | D27: = (Qgut * fu,blood/fu,gutcell-assay * CLin vitro * gutcells * mgut * wassay/wblood) / (Qgut + fu,blood/fu,gutcell-assay * CLin vitro * gutcells* mgut * wassay/wblood)
B29: Whole-body GIT biotransformation rate constant kB,GIT (w/o flow lim.) [1/d] | C29: =(C26*Kbloodw/Korganismw)/mbody*24 -> 0.008397033582 | D29: = (CLblood w/o flowlim,GIT * Kblood/water / Korganism/water) / Vorganism * 24
B33: in vitro - in vivo extrapolation of gut microsome assay data:
B35: assay clearance CLin vitro [mLassay/h/mgmic] | C35: ='compound input data'!J59/'compound input data'!J60 -> 1.1 | D35: = kassay / Cmicrosomes
B37: gut cell clearance CLgut [mLgut/h] | C37: =1/fugutmicassay*C35*gutmic*mgut*wgutmicassay/Kgutcellw -> 0.5082891258 | D37: = 1/fu,gutmic-assay * CLin vitro * gutmic * mgut * wassay/Kgutcell/w
B39: blood clearance w/o flow limitation CLblood w/o flowlim,GIT [mLblood/h] | C39: =fublood/fugutmicassay*C35*gutmic*mgut*wgutmicassay/wblood -> 0.7087411035 | D39: = fu,blood/fu,gutmic-assay * CLin vitro * gutmic * mgut * wassay/wblood
B40: blood clearance incl. flow lim. CLblood,GIT [mLblood/h] | C40: =(Qgut*fublood/fugutmicassay*C35*gutmic*mgut*wgutmicassay/wblood)/(Qgut+fublood/fugutmicassay*C35*gutmic*mgut*wgutmicassay/wblood) -> 0.7079633976 | D40: = (Qgut * fu,blood/fu,gutmic-assay * CLin vitro * gutmic * mgut * wassay/wblood) / (Qgut + fu,blood/fu,gutmic-assay * CLin vitro * gutmic* mgut * wassay/wblood)
B42: Whole-body GIT biotransformation rate constant kB,GIT (w/o flow lim.) [1/d] | C42: =(C39*Kbloodw/Korganismw)/mbody*24 -> 0.02890951743 | D42: = (CLblood w/o flowlim,GIT * Kblood/water / Korganism/water) / Vorganism * 24
B45: The following value for kB,GIT is used for final BMF calculation:
B47: whole-body GIT biotransformation rate constant kB,GIT (w/o flow lim.) [1/d] | C47: 0
B50: The above calculated GIT biotransformation rate constant kB,GIT refers to whole-body concentration and
B51: is used in the one-compartment model.
B52: For the multi-compartment model (that represents the GIT as an extra compartment), this kB,GIT cannot be
B53: used. Instead, a GIT biotransformation rate constant that refers to chemical concentration in the GIT (and
B54: not to whole-body concentration) is required.
B55: This required GIT biotransformation rate constant kGIT,biotransf is calcuated from the above kB,GIT via adjusting
B56: the normalization as follows:
B57: GIT biotransformation rate constant kGIT,biotransf [1/d] | C57: =kBGIT*Korganismw/Kgutcellw*mbody/Vgut -> 0 | D57: = kB,GIT * Korganismw / Kgutcellw * Vbody / Vgut
B59: When the GIT is considered as an extra compartment, rate constants describing transport from GIT to lung
B60: and vice versa ("kGIT,out" and "kGIT,in") are required. When no limitations due to slow permeation kinetics are
B61: assumed, this transport should solely depend on the blood flow rate.
B62: The rate constants can then be calculated from blood flow as follows:
B63: GIT-to-liver rate constant kGIT,out [1/d] | C63: =Qgut*Kbloodw/Kgutcellw*1/Vgut*24 -> 7918.509125 | D63: = Qgut * Kblood/w / Kgutcells/w * 1/Vgut * 24
B64: body-to-GIT rate constant kGIT,in [1/d] | C64: =Qgut*Kbloodw/Klungcellw*1/Vlung*24 -> 588281.0734 | D64: = Qgut * Kblood/w / Klung/w * 1/Vlung * 24

Sheet k2 - kidney biotransf
B2: ="Calculation of the kidney biotransformation rate constant for "&'compound input data'!D5 -> Calculation of the kidney biotransformation rate constant for b(a)p
B4: ="Info: You are currently using a log Kow of "&'compound input data'!B12&" and a log Koa of "&'compound input data'!C12&"." -> Info: You are currently using a log Kow of 8 and a log Koa of 10.
B7: in vitro - in vivo extrapolation of kidney S9 assay data:
B9: assay clearance CLin vitro [mLassay/h/mgS9] | C9: ='compound input data'!M48/'compound input data'!M49 -> 1 | D9: = kassay / CS9
B11: kidney cell clearance CLkidney [mLkidney/h] | C11: =1/fukidneyS9assay*C9*KSnine*mkidney*wkidneyS9assay/Kkidneycellw -> 1.261807923 | D11: = 1/fu,kidneyS9-assay * CLin vitro * KS9 * mkidney * wassay/Kkidneycell/w
B13: blood clearance w/o flow limitation CLblood w/o flowlim,kidney [mLblood/h] | C13: =fublood/fukidneyS9assay*C9*KSnine*mkidney*wkidneyS9assay/wblood -> 1.34333667 | D13: = fu,blood/fu,kidneyS9-assay * CLin vitro * KS9 * mkidney * wassay/wblood
B14: blood clearance incl. flow lim. CLblood,kidney [mLblood/h] | C14: =(Qkidney*fublood/fukidneyS9assay*C9*KSnine*mkidney*wkidneyS9assay/wblood)/(Qkidney+fublood/fukidneyS9assay*C9*KSnine*mkidney*wkidneyS9assay/wblood) -> 1.34030851 | D14: = (Qkidney * fu,blood/fu,kidneyS9-assay * CLin vitro * KS9 * mkidney * wassay/wblood) / (Qkidney + fu,blood/fu,kidneyS9-assay * CLin vitro * KS9* mkidney * wassay/wblood)
B16: Whole-body kidney biotransformation rate constant kB,KIDNEY (w/o flow lim.) [1/d] | C16: =(C13*Kbloodw/Korganismw)/mbody*24 -> 0.05479464178 | D16: = (CLblood w/o flowlim,kidney * Kblood/water / Korganism/water) / Vorganism * 24
B20: in vitro - in vivo extrapolation of kidney cell assay data:
B22: assay clearance CLin vitro [mLassay/h/106cells] | C22: ='compound input data'!M53/'compound input data'!M54 -> 0.05 | D22: = kassay / Ccells,assay
B24: kidney cell clearance CLkidney [mLkidney/h] | C24: =1/fukidneycellassay*C22*Kcells*mkidney*wkidneycellassay/Kkidneycellw -> 0.07764008302 | D24: = 1/fu,kidneycell-assay * CLin vitro * Kcells * mkidney * wassay/Kkidneycell/w
B26: blood clearance w/o flow limitation CLblood w/o flowlim,kidney [mLblood/h] | C26: =fublood/fukidneycellassay*C22*Kcells*mkidney*wkidneycellassay/wblood -> 0.08265661416 | D26: = fu,blood/fu,kidneycell-assay * CLin vitro * Kcells * mkidney * wassay/wblood
B27: blood clearance incl. flow lim. CLblood,kidney [mLblood/h] | C27: =(Qkidney*fublood/fukidneycellassay*C22*Kcells*mkidney*wkidneycellassay/wblood)/(Qkidney+fublood/fukidneycellassay*C22*Kcells*mkidney*wkidneycellassay/wblood) -> 0.08264512511 | D27: = (Qkidney * fu,blood/fu,kidneycell-assay * CLin vitro * Kcells * mkidney * wassay/wblood) / (Qkidney + fu,blood/fu,kidneycell-assay * CLin vitro * Kcells* mkidney * wassay/wblood)
B29: Whole-body kidney biotransformation rate constant kB,KIDNEY (w/o flow lim.) [1/d] | C29: =(C26*Kbloodw/Korganismw)/mbody*24 -> 0.003371559538 | D29: = (CLblood w/o flowlim,kidney * Kblood/water / Korganism/water) / Vorganism * 24
B33: in vitro - in vivo extrapolation of kidney microsome assay data:
B35: assay clearance CLin vitro [mLassay/h/mgmic] | C35: ='compound input data'!M59/'compound input data'!M60 -> 1.1 | D35: = kassay / Cmicrosomes
B37: kidney cell clearance CLkidney [mLkidney/h] | C37: =1/fukidneymicassay*C35*Kmic*mkidney*wkidneymicassay/Kkidneycellw -> 0.133826264 | D37: = 1/fu,kidneymic-assay * CLin vitro * Kmic * mkidney * wassay/Kkidneycell/w
B39: blood clearance w/o flow limitation CLblood w/o flowlim,kidney [mLblood/h] | C39: =fublood/fukidneymicassay*C35*Kmic*mkidney*wkidneymicassay/wblood -> 0.1424731329 | D39: = fu,blood/fu,kidneymic-assay * CLin vitro * Kmic * mkidney * wassay/wblood
B40: blood clearance incl. flow lim. CLblood,kidney [mLblood/h] | C40: =(Qkidney*fublood/fukidneymicassay*C35*Kmic*mkidney*wkidneymicassay/wblood)/(Qkidney+fublood/fukidneymicassay*C35*Kmic*mkidney*wkidneymicassay/wblood) -> 0.1424390018 | D40: = (Qkidney * fu,blood/fu,kidneymic-assay * CLin vitro * Kmic * mkidney * wassay/wblood) / (Qkidney + fu,blood/fu,kidneymic-assay * CLin vitro * Kmic* mkidney * wassay/wblood)
B42: Whole-body kidney biotransformation rate constant kB,KIDNEY (w/o flow lim.) [1/d] | C42: =(C39*Kbloodw/Korganismw)/mbody*24 -> 0.005811472622 | D42: = (CLblood w/o flowlim,kidney * Kblood/water / Korganism/water) / Vorganism * 24
B45: The following value for kB,KIDNEY is used for final BMF calculation:
B47: whole-body kidney biotransformation rate constant kB,KIDNEY (w/o flow lim.) [1/d] | C47: 0
B50: The above calculated kidney biotransformation rate constant kB,KIDNEY refers to whole-body concentration and
B51: is used in the one-compartment model.
B52: For the multi-compartment model (that represents the kidney as an extra compartment), this kB,KIDNEY cannot be
B53: used. Instead, a kidney biotransformation rate constant that refers to chemical concentration in the kidney (and
B54: not to whole-body concentration) is required.
B55: This required kidney biotransformation rate constant kkidney,biotransf is calcuated from the above kB,KIDNEY via adjusting
B56: the normalization as follows:
B57: renal biotransformation rate constant kkidney,biotransf [1/d] | C57: =C47*Korganismw/Kkidneycellw*mbody/Vkidney -> 0
B59: When the kidney is considered as an extra compartment, rate constants describing transport from kidney to lung
B60: and vice versa ("kkidney,out" and "kkidney,in") are required. When no limitations due to slow permeation kinetics are
B61: assumed, this transport should solely depend on the blood flow rate.
B62: The rate constants can then be calculated from blood flow as follows:
B63: lung-to-kidney rate constant kkidney,in [1/d] | C63: =Qkidney*Kbloodw/Klungcellw*1/Vlung*24 -> 542141.3814 | D63: = Qkidney * Kblood/w / Klungcells/w * 1/Vlung* 24
B64: kidney-to-lung rate constant kkidney,out [1/d] | C64: =Qkidney*Kbloodw/Kkidneycellw*1/Vkidney*24 -> 23804.07674 | D64: = Qkidney * Kblood/w / Kkidneycells/w * 1/Vkidney * 24

Sheet k2 - feces
B2: ="Calculation of the fecal egestion rate constant for "&'compound input data'!D5 -> Calculation of the fecal egestion rate constant for b(a)p
B4: ="Info: You are currently using a log Kow of "&'compound input data'!B12&" and a log Koa of "&'compound input data'!C12&"." -> Info: You are currently using a log Kow of 8 and a log Koa of 10.
B6: Fecal egestion rate constant kE [1/d] | D6: =kGITuptake*('organism input data'!C60*(1-'organism input data'!D101)*Kpw/Korganismw+'organism input data'!D60*(1-'organism input data'!D100)*10^logKow/Korganismw) -> 0.00441059801 | E6: = kFEED* (proteincontentfood *(1-EP)*KPW/Korganism/W + lipcontentfood *(1-EL)*KOW/Korganism/W )
B9: The above calculated fecal egestion rate constant kE refers to whole-body concentration and is used
B10: in the one-compartment model.
B11: For the multi-compartment model (that represents the GIT as an extra compartment), this kE cannot be
B12: used. Instead, a fecal egestion rate constant that refers to chemical concentration in the GIT (and not to
B13: whole-body concentration) is required.
B14: This required fecal egestion rate constant kGIT,feces is calcuated from the above kE via adjusting the
B15: normalization as follows:
B16: GIT fecal egestion rate constant kGIT,feces [1/d] | D16: =kE*Korganismw/Kgutcellw*mbody/Vgut -> 1.327103017 | E16: = kE * Korganism/w / Kgutcell/w * Vbody / Vgut

Sheet k2 - urine
B2: ="Calculation of the urinary excretion rate constant for "&'compound input data'!D5 -> Calculation of the urinary excretion rate constant for b(a)p
B4: ="Info: You are currently using a log Kow of "&'compound input data'!B12&" and a log Koa of "&'compound input data'!C12&"." -> Info: You are currently using a log Kow of 8 and a log Koa of 10.
B6: Urinary excretion rate constant kU [1/d] | D6: ='organism input data'!D103/Korganismw -> 7.083686393e-09 | E6: = urination rate / Korganism/water
B9: The above calculated urinary excretion egestion rate constant kU refers to whole-body concentration and is used
B10: in the one-compartment model.
B11: For the multi-compartment model (that represents the kidney as an extra compartment), this kU cannot be
B12: used. Instead, a urinary exrection rate constant that refers to chemical concentration in the kidney (and not to
B13: whole-body concentration) is required.
B14: This required fecal egestion rate constant kkidney,urine is calcuated from the above kU via adjusting the
B15: normalization as follows:
B16: "kidney-based" urinary excretion rate constant kkidney,urine [1/d] | D16: =kU*Korganismw/Kkidneycellw*mbody/Vkidney -> 6.952591671e-06

Sheet references
B2: References
B4: Arms AD, Travis CC (1988) Reference physiological parameters in pharmacokinetic modeling. Washington, US: EPA, 1988
B5: Behera D, Damre A, Varghese A, Addepalli V (2008) In vitro evaluation of hepatic and extra-hepatic metabolism of coumarins using rat subcellular fractions: Correlation of in vitro clearance with in vivo data. Drug metabolism and drug interactions 23(3-4):329-350
B6: Bertram JF, Soosaipillai MC, Ricardo SD, Ryan GB (1992) Total numbers of glomeruli and individual glomerular cell types in the normal rat kidney. Cell and Tissue Research 270(1):37-45 doi:10.1007/bf00381877
B7: Brown RP, Delp MD, Lindstedt SL, Rhomberg LR, Beliles RP (1997) Physiological Parameter Values for Physiologically Based Pharmacokinetic Models. Toxicology and Industrial Health 13(4):407-484 doi:10.1177/074823379701300401
B8: Canadian Council on Animal Care, Guideline for animal ethics and care - rat.
B9: Crapo JD, Barry BE, Foscue HA, Shelburne J (1980) Structural and Biochemical Changes in Rat Lungs Occurring During Exposures to Lethal and Adaptive Doses of Oxygen. American Review of Respiratory Disease 122(1):123-143 doi:10.1164/arrd.1980.122.1.123
B10: Endo S, Brown TN, Goss K-U (2013) General model for estimating partition coefficients to organisms and their tissues using the biological compositions and polyparameter linear free energy relationships. Environmental Science & Technology 47(12):6630-6639 doi:10.1021/es401772m
B11: Gonzalez RF, Allen L, Dobbs LG (2009) Rat alveolar type I cells proliferate, express OCT-4, and exhibit phenotypic plasticity in vitro. American Journal of Physiology-Lung Cellular and Molecular Physiology 297(6):L1045-L1055 doi:10.1152/ajplung.90389.2008
B12: Hatley OJD, Jones CR, Galetin A, Rostami-Hodjegan A (2017) Optimization of intestinal microsomal preparation in the rat: A systematic approach to assess the influence of various methodologies on metabolic activity and scaling factors. Biopharmaceutics & Drug Disposition 38(3):187-208 doi:10.1002/bdd.2070
B13: Keenan KP, Ballam GC, Haught DG, Laroque P (2000) Chapter 5 - Nutrition. In: Krinke GJ (ed) The Laboratory Rat. Academic Press, London, p 57-75
B14: Klinger W, Devereux T, Fouts J (1988) Separation and characterization of hepatocytes from immature and adult rats into distinct subpopulations by centrifugal elutriation. Experimental pathology 33(4):213-222 doi:https://doi.org/10.1016/S0232-1513(88)80075-6
B15: Koster AS, Noordhoek J (1983) Glucuronidation in the rat intestinal wall: Comparison of isolated mucosal cells, latent microsomes and activated microsomes. Biochemical pharmacology 32(5):895-900 doi:https://doi.org/10.1016/0006-2952(83)90594-4
B16: Krause S, Goss K-U (2018) In Vitro–in Vivo Extrapolation of Hepatic Metabolism for Different Scenarios-a Toolbox. Chemical Research in Toxicology 31(11):1195-1202 doi:10.1021/acs.chemrestox.8b00187
B17: Lee Y-S, Otton SV, Campbell DA, Moore MM, Kennedy CJ, Gobas FAPC (2012) Measuring In Vitro Biotransformation Rates of Super Hydrophobic Chemicals in Rat Liver S9 Fractions Using Thin-Film Sorbent-Phase Dosing. Environmental Science & Technology 46(1):410-418 doi:10.1021/es203338h
B18: Lee Y-S, Lo JC, Otton SV, Moore MM, Kennedy CJ, Gobas FAPC (2017) In vitro to in vivo extrapolation of biotransformation rates for assessing bioaccumulation of hydrophobic organic chemicals in mammals. Environmental Toxicology and Chemistry 36(7):1934-1946 doi:10.1002/etc.3718
B19: Punt A, Freidig AP, Delatour T, et al. (2008) A physiologically based biokinetic (PBBK) model for estragole bioactivation and detoxification in rat. Toxicology and Applied Pharmacology 231(2):248-259 doi:https://doi.org/10.1016/j.taap.2008.04.011
B20: Roth WL, Freeman RA, Wilson AG (1993) A physiologically based model for gastrointestinal absorption and excretion of chemicals carried by lipids. Risk Analysis 13(5):531-543
B21: Sohlenius-Sternbeck A-K (2006) Determination of the hepatocellularity number for human, dog, rabbit, rat and mouse livers from protein concentration measurements. Toxicology in Vitro 20(8):1582-1586 doi:https://doi.org/10.1016/j.tiv.2006.06.003
B22: Vento PJ, Swartz ME, Martin LBE, Daniels D (2008) Food Intake in Laboratory Rats Provided Standard and Fenbendazole-supplemented Diets. Journal of the American Association for Laboratory Animal Science 47(6):46-50
B23: Yang J, Hernandez BJ, Martinez Alanis D, et al. (2016) The development and plasticity of alveolar type 1 cells. Development 143(1):54-65 doi:10.1242/dev.130005

Sheet glossary
B2: Explanation of the used colours
B4: compound specific input data
B5: organism specific input data
B6: values used for final BMF calculation | C6: 1234
B7: interim results shown for information purposes only | C7: 1234
B8: IVIVE for cell assay in vitro data
B9: IVIVE for S9 in vitro data
B14: Explanation of the used variables
B17: CLblood,lung | C17: blood clearance due to lung biotransformation incl. flow limitation [mLblood/h]
B18: Clung | C18: chemical steady state-concentration in lungs [g/mLlung]
B19: CGIT | C19: chemical steady state-concentration in GIT [g/mLGIT]
B20: CLblood w/o flowlim,lung | C20: blood clearance due to lung biotransformation without flow limitation [mLblood/h]
B21: CLblood w/o flowlim,GIT | C21: blood clearance due to biotransformation in GITwithout flow limitation [mLblood/h]
B22: CLblood w/o flowlim,liver | C22: blood clearance due to hepatic biotransformation without flow limitation [mLblood/h]
B23: CLblood,GIT | C23: blood clearance due to biotransformation in GIT incl. flow limitation [mLblood/h]
B24: CLblood,liver | C24: blood clearance due to hepatic biotransformation incl. flow limitation [mLblood/h]
B25: CLlung | C25: lung cell clearance [mLlung/h]
B26: CLgut | C26: gut cell clearance [mLgut/h]
B27: CLhep | C27: hepatocyte clearance [mLhep/h]
B28: CLin vitro | C28: assay clearance [mLassay/h/mgS9 or mLassay/h/106 cells]
B29: Cliver | C29: chemical steady state-concentration in liver [g/mLliver]
B30: Crestbody | C30: chemical steady state-concentration in restbody [g/mLrestbody]
B31: CS9 in assay | C31: S9 concentration in assay [mgS9/mLassay]
B32: Cviable cells in assay | C32: concentration of viable cells in assay [* 106 cells/mLassay]
B35: dlungcell | C35: lung cell diameter [cm]
B36: dgutcell | C36: gut cell diameter [cm]
B37: dhep | C37: hepatocyte diameter [cm]
B38: fu,blood | C38: unbound fraction in blood [unitless]
B40: fu,lungcell-assay | C40: unbound fraction in lungcell assay
B41: fu,lungS9-assay | C41: unbound fraction in lung S9 assay [unitless]
B42: fu,gutcell-assay | C42: unbound fraction in gutcell assay
B43: fu,gutS9-assay | C43: unbound fraction in gut S9 assay [unitless]
B44: fu,hep-assay | C44: unbound fraction in hepatocyte assay [unitless]
B45: fu,liverS9-assay | C45: unbound fraction in liver S9 assay [unitless]
B46: Gcells | C46: cell content in lungs [106 cells/glungs]
B47: GFBW | C47: fractional lung weight [glung/grat]
B48: GS9 | C48: lung S9 protein content [mg/glung]
B49: Gutcells | C49: cell content in gut [106 cells/gGIT]
B50: GutFBW | C50: fractional intestine weight [ggut/grat]
B51: GutS9 | C51: gut S9 protein content [mg/ggut]
B52: k1 | C52: lung uptake rate constant [L/kg/d]
B53: kassay | C53: first-order biotransformation rate constant determined in assay [1/h]
B54: kB,LUNG | C54: whole-body lung biotransformation rate constant [1/d]
B55: kB,GIT | C55: whole-body GIT biotransformation rate constant [1/d]
B56: kB,LIVER | C56: whole-body biotransformation rate constant [1/d]
B57: Kblood/W | C57: blood-water partition coefficient [LH2O/Lblood]
B58: kE | C58: fecal egestion rate constant [1/d]
B59: kFEED | C59: feeding rate [kgfood/d/kgrat]
B60: Klungcells/W | C60: lung cell-water partition coefficient [LH2O/Llungcell]
B61: klung,biotransf | C61: lung biotransformation rate constant referring to lung concentration [1/d]
B62: kbody,in | C62: rate constant describing transport from lungs to gibody [1/d]
B63: kbody,out | C63: rate constant describing transport from body to lungs rate constant [1/d]
B64: klung,ventilation | C64: "lung-based" ventilation rate constant [1/d]
B65: kGIT,feces | C65: GIT fecal egestion rate constant [1/d]
B66: kGIT,in | C66: rate constant describing transport from body to GIT [1/d]
B67: kGIT,out | C67: rate constant describing transport from GIT to body rate constant [1/d]
B68: Kgutcells/W | C68: gut cell-water partition coefficient [LH2O/Lgutcell]
B69: Khep/W | C69: hepatocyte-water partition coefficient [LH2O/Lhep]
B70: kliver,biotransf | C70: liver biotransformation rate constant referring to liver concentration [1/d]
B71: kliver,in | C71: rate constant describing transport from body to liver [1/d]
B72: kliver,out | C72: rate constant describing transport from liver to body rate constant [1/d]
B73: Korganism/W | C73: organism-water partition coefficient [LH2O/LOrg]
B74: KOW | C74: octanol-water partition coefficient [LH2O/Loctanol]
B75: Krestbody/W [LH2O/Lrestbody] | C75: rest body-water partition coefficient [LH2O/Lrestbody]
B76: kV | C76: whole-body ventilation elimination rate constant [1/d]
B77: LFBW | C77: fractional liver weight [gliver/grat]
B78: LHEP | C78: liver hepatocyte content [106 cells/gliver]
B79: lipidhepassay (or lipidblood or lipidhep …) | C79: lipid content of hepatocyte assay (or blood or hepatocytes …)
B80: LS9 | C80: liver S9 protein content [mg/gliver]
B81: mbody | C81: bodyweight [grat]
B82: mlungs | C82: lung weight [glung]
B83: mgut | C83: gut weight [ggut]
B84: mliver | C84: liver weight [gliver]
B85: proteinhepassay (or proteinblood or proteinhep …) | C85: protein content of hepatocyte assay (or blood or hepatocytes …)
B86: QC | C86: cardiac output [L/d/kgrat]
B87: QGFRAC | C87: intestinal blood flow as fraction of cardiac output [unitless]
B88: Qlung | C88: lung blood flow rate [mLblood/h]
B89: Qlung, bodyweight | C89: lung blood flow rate per bodyweight [mLblood/h/grat]
B90: Qgut | C90: gut blood flow rate [mLblood/h]
B91: Qgut, bodyweight | C91: gut blood flow rate per bodyweight [mLblood/h/grat]
B92: QHFRAC | C92: liver blood flow as fraction of cardiac output [unitless]
B93: Qliver | C93: arterial liver blood flow [mL/h]
B94: Qliver,bodyweight | C94: liver blood flow per bodyweight [L/d/kgrat]
B95: Qliver-total | C95: total liver blood flow [mL/h]
B96: Vassay | C96: total assay volume [mLassay]
B97: Vlungcells | C97: total cell volume present in lung cell assay [mLcells]
B98: Vlung | C98: lung volume [mLlung]
B99: Vgut | C99: gut volume Vgut in [mLgut]
B100: Vgutcells | C100: total cell volume present in gutcell assay [mLcells]
B101: Vhep | C101: total hepatocyte volume present in assay [mLhep]
B102: Vorganism = mbody | C102: volume of body [mLbody], density of 1 assumed!
B103: Vrestbody | C103: volume of restbody [mLrestbody]
B104: VS9 | C104: S9 volume present in assay [mL]
B105: whepassay (or wblood or whep …) | C105: water content of assay (or blood or hepatocytes …)
B106: ρS9 | C106: S9 density [g/mL]

Sheet Tabelle1
C10: Crestbody | D10: Cliver | E10: CGIT | F10: Cgills
B11: I | C11: =-kbodyout*mrestbody -> -23080.19171 | D11: 0 | E11: 0 | F11: =kbodyin*Vlung -> 56567.91231 | G11: 0
B12: II | C12: 0 | D12: =-((kliverbiotransf+kliverout)*Vhepliver) -> -21324.91429 | E12: =kGITout*Vgut -> 11104.97231 | F12: =kliverin*Vlung -> 1734.198771 | G12: 0
B13: III | C13: 0 | D13: 0 | E13: =-(kGITbiotransf+kGITfeces+kGITout)*Vgut -> -11106.83345 | F13: =kGITin*Vlung -> 12634.87676 | G13: 0
B14: IV | C14: =kbodyout*mrestbody -> 23080.19171 | D14: =kliverout*Vhepliver -> 14113.60763 | E14: 0 | F14: =-(klungventilation+klungbiotransf+kbodyin+kliverin+kGITin)*Vlung -> -70997.53085 | G14: =-kone*mbody*Cwfree -> 0
B27: Kontrolle
B30: --> ( IV * Crestbody-I ) - ( I * Crestbody-IV ):
C31: Crestbody | D31: Cliver | E31: CGIT | F31: Cgills
B32: I | C32: =-kbodyout*mrestbody -> -23080.19171 | D32: 0 | E32: 0 | F32: =kbodyin*Vlung -> 56567.91231 | G32: 0
B33: II | C33: 0 | D33: =-((kliverbiotransf+kliverout)*Vhepliver) -> -21324.91429 | E33: =kGITout*Vgut -> 11104.97231 | F33: =kliverin*Vlung -> 1734.198771 | G33: 0
B34: III | C34: 0 | D34: 0 | E34: =-(kGITbiotransf+kGITfeces+kGITout)*Vgut -> -11106.83345 | F34: =kGITin*Vlung -> 12634.87676 | G34: 0
B35: IV | C35: =C14*C11-C11*C14 -> 0 | D35: =D14*C11-D11*C14 -> -325744769.9 | E35: =E14*C11-E11*C14 -> 0 | F35: =F14*C11-F11*C14 -> 333038362.3 | G35: =G14*C11-G11*C14 -> 0
B37: --> ( IV * Cliver-II ) - ( II * Cliver-IV):
C38: Crestbody | D38: Cliver | E38: CGIT | F38: Cgills
B39: I | C39: =-kbodyout*mrestbody -> -23080.19171 | D39: 0 | E39: 0 | F39: =kbodyin*Vlung -> 56567.91231 | G39: 0
B40: II | C40: 0 | D40: =-((kliverbiotransf+kliverout)*Vhepliver) -> -21324.91429 | E40: =kGITout*Vgut -> 11104.97231 | F40: =kliverin*Vlung -> 1734.198771 | G40: 0
B41: III | C41: 0 | D41: 0 | E41: =-(kGITbiotransf+kGITfeces+kGITout)*Vgut -> -11106.83345 | F41: =kGITin*Vlung -> 12634.87676 | G41: 0
B42: IV | C42: 0 | D42: =D35*D33-D33*D35 -> 0 | E42: =E35*D33-E33*D35 -> 3.617386651e+12 | F42: =F35*D33-F33*D35 -> -6.537108352e+12 | G42: =G35*D33-G33*D35 -> 0
B44: --> ( IV * CGIT-III ) - ( III * CGIT-IV):
C45: Crestbody | D45: Cliver | E45: CGIT | F45: Cgills
B46: I | C46: =-kbodyout*mrestbody -> -23080.19171 | D46: 0 | E46: 0 | F46: =kbodyin*Vlung -> 56567.91231 | G46: 0
B47: II | C47: 0 | D47: =-((kliverbiotransf+kliverout)*Vhepliver) -> -21324.91429 | E47: =kGITout*Vgut -> 11104.97231 | F47: =kliverin*Vlung -> 1734.198771 | G47: 0
B48: III | C48: 0 | D48: 0 | E48: =-(kGITbiotransf+kGITfeces+kGITout)*Vgut -> -11106.83345 | F48: =kGITin*Vlung -> 12634.87676 | G48: 0
B49: IV | C49: 0 | D49: 0 | E49: =E42*E41-E41*E42 -> 0 | F49: =F42*E41-F41*E42 -> 2.690133918e+16 | G49: =G42*E41-G41*E42 -> 0
B51: From the triangular form of the matrix the steady state - concentrations in the four compartments
B52: can be calculated:
B54: Cgills | C54: =G49/F49 -> 0
B55: CGIT | C55: =(G48-C54*F48)/E48 -> 0
B56: Cliver | C56: =(G47-F47*C54-E47*C55)/D47 -> 0
B57: Crestbody | C57: =(G46-F46*C54-E46*C55-D46*C56)/C46 -> 0
B59: Combination of the steady state-concentrations in the compartments finally yields the BCF:
B60: BCF | C60: =(C55*Vgut+C56*Vhepliver+C54*Vlung+C57*mrestbody)/mbody/ 'compound input data'!$D$116 -> 
